Workbook

Sheet رئيسيه
AB2: =T4-H4-Z4-AB4 -> 848.95
D4: =SUBTOTAL(9,D10:D1001) -> 297.35 | H4: =SUBTOTAL(9,H10:H1001) -> 189254.1 | P4: =SUBTOTAL(9,P10:P1001) -> 297.35 | T4: =SUBTOTAL(9,T10:T1001) -> 194636.05 | Z4: =SUBTOTAL(9,Z10:Z1001) -> 3333 | AB4: =SUBTOTAL(9,AB10:AB1001) -> 1200 | AD4: =SUBTOTAL(9,AD10:AD1001) -> 848.95
B6: الشراء | N6: البيع
B8: التاريخ | D8: الوزن (طن ) | F8: السعر | H8: المبلغ | J8: المجهز | L8: السائق | N8: التاريخ | P8: الوزن (طن ) | R8: السعر | T8: المبلغ | V8: المجهز | X8: الوكيل | Z8: أجور النقل | AB8: السماح | AD8: الفرق
B10: 27/9/2022 | D10: 37.67 | F10: 750 | H10: 28252.5 | J10: fac1 | L10: name1 | N10: 27/9/2022 | P10: 37.67 | R10: 755 | T10: =IF(R10="","",P10*R10) -> 28440.85 | V10: fac1 | X10: وكيل1 | AD10: =IFERROR(T10-H10-Z10-AB10,"") -> 188.35
B11: 27/9/2022 | D11: 49.7 | F11: 620 | H11: 30814 | J11: fac2 | L11: name2 | N11: 27/9/2022 | P11: 49.7 | R11: 640 | T11: =IF(R11="","",P11*R11) -> 31808 | V11: fac2 | X11: وكيل2 | Z11: 638 | AB11: 240 | AD11: =IFERROR(T11-H11-Z11-AB11,"") -> 116
B12: 27/9/2022 | D12: 26.18 | F12: 620 | H12: 16231.6 | J12: fac1 | L12: name3 | N12: 27/9/2022 | P12: 26.18 | R12: 640 | T12: 16755.2 | V12: fac1 | X12: وكيل3 | Z12: 336 | AB12: 120 | AD12: 67.6
B13: 27/9/2022 | D13: 26.06 | F13: 620 | H13: 16157.2 | J13: fac4 | L13: name4 | N13: 27/9/2022 | P13: 26.06 | R13: 640 | T13: 16678.4 | V13: fac4 | X13: وكيل4 | Z13: 334 | AB13: 120 | AD13: 67.2
B14: 27/9/2022 | D14: 50.1 | F14: 620 | H14: =D14*F14 -> 31062 | J14: fac5 | L14: name5 | N14: 27/9/2022 | P14: 50.1 | R14: 640 | T14: 32064 | V14: fac5 | X14: وكيل5 | Z14: 643 | AB14: 240 | AD14: 119
B15: 27/9/2022 | D15: 59.54 | F15: 620 | H15: 36914.8 | J15: fac2 | L15: name6 | N15: 27/9/2022 | P15: 59.54 | R15: 640 | T15: 38105.6 | V15: fac2 | X15: وكيل1 | Z15: 765 | AB15: 240 | AD15: 185.8
B16: 27/9/2022 | D16: 24.1 | F16: 620 | H16: 14942 | J16: fac7 | L16: name7 | N16: 27/9/2022 | P16: 24.1 | R16: 640 | T16: 15424 | V16: fac7 | X16: وكيل2 | Z16: 309 | AB16: 120 | AD16: 53
B17: 27/9/2022 | D17: 24 | F17: 620 | H17: 14880 | J17: fac8 | L17: name8 | N17: 27/9/2022 | P17: 24 | R17: 640 | T17: 15360 | V17: fac8 | X17: وكيل4 | Z17: 308 | AB17: 120 | AD17: 52
T18: =IF(R18="","",P18*R18) ->  | AD18: =IFERROR(T18-H18-Z18-AB18,"") -> 
H19: =IF(F19="","",D19*F19) -> 

Sheet وكيل1
B6: =MID(CELL("filename",A1),FIND("]",CELL("filename",A1))+1,31) -> وكيل1
B8: التاريخ | D8: الوزن (طن ) | F8: السعر | H8: المبلغ | J8: المجهز | L8: أجور النقل | N8: السماح | P8: الفرق
B10: 27/9/2022 | D10: 37.67 | F10: 755 | H10: 28440.85 | J10: fac1 | P10: =IFERROR(IF(B10="","",H10-L10-N10),"") -> 28440.85
B11: 27/9/2022 | D11: 59.54 | F11: 640 | H11: 38105.6 | J11: fac2 | L11: 765 | N11: 240 | P11: =IFERROR(IF(B11="","",H11-L11-N11),"") -> 37100.6

Sheet وكيل2
B6: وكيل2
B8: التاريخ | D8: الوزن (طن ) | F8: السعر | H8: المبلغ | J8: المجهز | L8: أجور النقل | N8: السماح | P8: الفرق
B10: 27/9/2022 | D10: 49.7 | F10: 640 | H10: 31808 | J10: fac2 | L10: 638 | N10: 240 | P10: =IFERROR(IF(B10="","",H10-L10-N10),"") -> 30930
B11: 27/9/2022 | D11: 24.1 | F11: 640 | H11: 15424 | J11: fac7 | L11: 309 | N11: 120 | P11: =IFERROR(IF(B11="","",H11-L11-N11),"") -> 14995

Sheet وكيل3
B6: وكيل3
B8: التاريخ | D8: الوزن (طن ) | F8: السعر | H8: المبلغ | J8: المجهز | L8: أجور النقل | N8: السماح | P8: الفرق
B10: 27/9/2022 | D10: 26.18 | F10: 640 | H10: 16755.2 | J10: fac1 | L10: 336 | N10: 120 | P10: =IFERROR(IF(B10="","",H10-L10-N10),"") -> 16299.2

Sheet وكيل4
B6: وكيل4
B8: التاريخ | D8: الوزن (طن ) | F8: السعر | H8: المبلغ | J8: المجهز | L8: أجور النقل | N8: السماح | P8: الفرق
B10: 27/9/2022 | D10: 26.06 | F10: 640 | H10: 16678.4 | J10: fac4 | L10: 334 | N10: 120 | P10: =IFERROR(IF(B10="","",H10-L10-N10),"") -> 16224.4
B11: 27/9/2022 | D11: 24 | F11: 640 | H11: 15360 | J11: fac8 | L11: 308 | N11: 120 | P11: =IFERROR(IF(B11="","",H11-L11-N11),"") -> 14932

Sheet وكيل5
B6: وكيل5
B8: التاريخ | D8: الوزن (طن ) | F8: السعر | H8: المبلغ | J8: المجهز | L8: أجور النقل | N8: السماح | P8: الفرق
B10: 27/9/2022 | D10: 50.1 | F10: 640 | H10: 32064 | J10: fac5 | L10: 643 | N10: 240 | P10: =IFERROR(IF(B10="","",H10-L10-N10),"") -> 31181
